Cogmind - Beta 14 @@@ ROGUE MODE // 2024.11.06 @ 22:15:39 Player: OG DANIEL Result: Destroyed by D-53 Grenadier with Mini Grenade Launcher Performance ------------- Evolutions (1) 500 Regions Visited (4) 800 Robots Destroyed (37) 185 Value Destroyed (898) 898 Prototype IDs (0) 0 Alien Tech Used (0) 0 Bonus (0) 0 TOTAL SCORE: 2383 Bonus ------- None Cogmind --------- Core Integrity 0/400 Matter 146/300 Energy 99/100 System Corruption 20% Temperature Cool (0) Movement Core (700) Ox13 Location -9/Mines Parts ------- > --- POWER (1) -------- (None) > --- PROPULSION (4) --- (None) > --- UTILITY (2) ------ Large Storage Unit Large Storage Unit > --- WEAPON (2) ------- (None) > --- INVENTORY (15) --- Medium Armor Plating EM Shotgun Heavy Assault Rifle Peak State ------------ > --- POWER ------------ Light Ion Engine > --- PROPULSION ------- Light Treads Light Treads Aluminum Leg Aluminum Leg > --- UTILITY ---------- Medium Storage Unit Medium Armor Plating > --- WEAPON ----------- EM Shotgun EM Shotgun > --- INVENTORY -------- Ion Engine Light Treads Light Treads Aluminum Leg Aluminum Leg Small Storage Unit Light Assault Rifle Light Assault Rifle Shotgun [Rating: 13] Favorites ----------- Power Light Ion Engine Engine Light Ion Engine Propulsion Light Treads Treads Light Treads Leg Aluminum Leg Flight Unit Flight Unit Utility Small Storage Unit Device Heat Sink Storage Small Storage Unit Protection Medium Armor Plating Weapon EM Shotgun Energy Gun EM Shotgun Ballistic Gun Shotgun Build | -11 -10 -10 -9 -9 ------- Run | Yrd Mat Min Mat Min Slots Evolved 2 | . . . 2 . Power . | . . . . . Propulsion 2 | . . . 2 . Utility . | . . . . . Weapon . | . . . . . Parts Attached 53 | 6 6 . 28 13 Power 7 | 1 1 . 4 1 Engine 7 | 1 1 . 4 1 Core . | . . . . . Reactor . | . . . . . Propulsion 23 | 2 . . 14 7 Treads 14 | 2 . . 8 4 Leg 5 | . . . 4 1 Wheel . | . . . . . Hover . | . . . . . Flight 4 | . . . 2 2 Utility 7 | 1 . . 5 1 Device 1 | . . . 1 . Storage 5 | 1 . . 3 1 Processor . | . . . . . Hackware . | . . . . . Protection 1 | . . . 1 . Artifact . | . . . . . Weapon 16 | 2 5 . 5 4 Energy Gun 4 | . 2 . 2 . Energy Cannon . | . . . . . Ballistic Gun 12 | 2 3 . 3 4 Ballistic Cannon . | . . . . . Launcher . | . . . . . Special Weapon . | . . . . . Impact Weapon . | . . . . . Slashing Weapon . | . . . . . Piercing Weapon . | . . . . . Special Melee Weapon . | . . . . . Unidentified Prototypes . | . . . . . Corrupted Parts 4 | . . . 4 . System Corruption 20 | . . . 20 . Parts Lost 24 | . . . 5 19 Power 3 | . . . 1 2 Propulsion 14 | . . . 3 11 Utility 1 | . . . . 1 Weapon 6 | . . . 1 5 Highest Loss Streak 11 | . . . 5 11 To Critical Strikes . | . . . . . Average Slot Usage (%) 86 | . 85 85 93 69 Engine 11 | . 14 14 10 6 Treads 23 | . 28 28 20 13 Leg 8 | . . . 20 12 Storage 13 | . 14 14 11 12 Protection 2 | . . . 5 . Energy Gun 12 | . . 28 15 . Ballistic Gun 12 | . 27 . 6 14 Peak Build Rating 13 | 6 8 8 13 11 Average Rating 8 | 5 7 8 11 7 On Entrance 6 | . 6 8 8 11 Naked Turns . | . . . . . Heaviest Build 48 | 12 16 14 30 48 Greatest Support 40 | 40 40 40 40 40 Greatest Overweight (x) 14 | . . . 5 14 Average Overweight (x) . | . . . . 1 Largest Inventory Capacity 15 | 8 8 8 15 15 Average Capacity 9 | 7 8 8 10 15 Most Carried 13 | 6 8 8 13 12 Average Carried 8 | 4 7 8 8 8 Final Capacity 15 | 8 8 8 15 15 Final Carried 12 | 6 8 8 12 3 Class Distribution -------------------- 71% | Mutant 28% | Scavenger-Mutant Dominant Class ---------------- Mutant | -10/Materials Mutant | -10/Mines Scavenger-Mutant | -9/Materials Mutant | -9/Mines Resources | -11 -10 -10 -9 -9 ----------- Run | Yrd Mat Min Mat Min Matter Collected 807 | 265 228 31 283 . Remotely . | . . . . . Salvage Created 1419 | 97 385 35 804 98 Parts 92 | 5 29 2 48 8 Haulers Intercepted 1 | . . . 1 . Recyclers Shooed 2 | 1 1 . . . Parts Field Recycled . | . . . . . Retrieved Matter . | . . . . . Parts Self-Destructed . | . . . . . Prevented . | . . . . . Kills | -11 -10 -10 -9 -9 ------- Run | Yrd Mat Min Mat Min Combat Hostiles Destroyed 26 | . 10 2 12 2 Guns 26 | . 10 2 12 2 Classes Destroyed 10 | 2 3 . 5 . Worker 2 | 2 . . . . Builder 1 | . . . 1 . Tunneler 1 | . . . 1 . Hauler 1 | . . . 1 . Recycler 3 | 1 1 . 1 . Mechanic 1 | . . . 1 . Watcher 2 | . 1 . 1 . Swarmer 7 | . 3 2 2 . Grunt 12 | . 7 . 5 . Sentry 7 | . . . 5 2 Best Kill Streak 5 | 3 3 2 5 2 Combat Bots Only 4 | . 3 2 4 2 Max Kills in Single Turn 2 | 1 1 1 2 1 Gunslinging . | . . . . . Exploded . | . . . . . Melee . | . . . . . Uniques/NPCs Destroyed . | . . . . . Combat | -11 -10 -10 -9 -9 -------- Run | Yrd Mat Min Mat Min Hostile Shots Fired 216 | . 49 3 106 58 Missed 50 | . 11 1 30 8 Damage Taken 2908 | . 398 16 885 1609 Core 498 | . 69 16 63 350 Absorbed by Shields . | . . . . . Core Remaining (%) 83 | 100 . 66 . . Volleys Fired 88 | 8 28 2 44 6 Largest 2 | 2 2 2 2 2 Hottest 90 | 40 46 90 90 43 Shots Fired 167 | 16 57 4 81 9 Gun 167 | 16 57 4 81 9 Cannon . | . . . . . Launcher . | . . . . . Special . | . . . . . Kinetic 106 | 16 57 . 24 9 Thermal . | . . . . . Explosive . | . . . . . Electromagnetic 61 | . . 4 57 . Robot Hit Streak 14 | 7 11 4 14 6 Robot Miss Streak 4 | 1 2 1 4 2 Penetration Max . | . . . . . Secondary Targets 4 | . 3 . 1 . Max Gunslinging Chain 1 | . 1 . 1 . Shots Hit Robots 124 | 12 42 4 59 7 Core Hits 77 | 5 24 5 38 5 Critical Kills 1 | . . . . 1 Critical Parts Destroyed 2 | . 2 . . . Critical Strikes 3 | . 2 . . 1 Destroy 3 | . 2 . . 1 Melee Attacks . | . . . . . Impact . | . . . . . Slashing . | . . . . . Piercing . | . . . . . Sneak Attacks . | . . . . . Combat Hostiles . | . . . . . Follow-up Attacks . | . . . . . Damage Inflicted 1697 | 103 615 44 841 94 Guns 1637 | 90 610 39 804 94 Cannons . | . . . . . Explosions 30 | . . . 30 . Melee . | . . . . . Ramming 30 | 13 5 5 7 . Kinetic 879 | 90 610 . 85 94 Thermal 30 | . . . 30 . Explosive . | . . . . . Electromagnetic 758 | . . 39 719 . Impact . | . . . . . Slashing . | . . . . . Piercing . | . . . . . Highest Corruption 20 | . 2 2 20 20 Average Corruption 9 | . 2 2 17 20 Corruption Purged . | . . . . . Corruption Blocked . | . . . . . Effects 62 | . 8 9 36 9 Message Errors 15 | . 5 2 8 . Matter Fused 9 | . 1 2 6 . Heat Flow Errors 9 | . 1 1 5 2 Energy Discharges 10 | . . 2 4 4 Parts Fused 2 | . . 1 . 1 Data Loss (minor) 10 | . . 1 7 2 Misfires 1 | . 1 . . . Alerts 3 | . . . 3 . Weapon Failures 3 | . . . 3 . Overload Shots . | . . . . . Overflow Damage . | . . . . . Projectiles . | . . . . . Explosions . | . . . . . Melee . | . . . . . Knockbacks 1 | . 1 . . . Impact 1 | . 1 . . . Kinetic . | . . . . . Secondary . | . . . . . Self-Inflicted Damage . | . . . . . Shots . | . . . . . Rammed 10 | 3 4 2 1 . Targets Rammed 10 | 3 4 2 1 . Kicked . | . . . . . Crushed . | . . . . . Highest Temperature 421 | . 235 224 421 114 Average Temperature 105 | . 46 85 122 59 Received Heat Transfer 577 | . 183 . 282 112 Effects 5 | . . . 5 . Shutdowns 1 | . . . 1 . Interference 2 | . . . 2 . Matter Decay 1 | . . . 1 . Damage (minor) 1 | . . . 1 . Siege Activations . | . . . . . Robots Corrupted . | . . . . . Combat Hostiles . | . . . . . Parts Fried 3 | . . . 3 . Impact Corruptions . | . . . . . Robots Melted . | . . . . . Combat Hostiles . | . . . . . Parts Melted . | . . . . . Heat Transferred 50 | . . . 50 . Parts Sabotaged . | . . . . . Parts Stolen . | . . . . . Parts Stripped . | . . . . . Power Chain Reactions 1 | . . . 1 . Alert | -11 -10 -10 -9 -9 ------- Run | Yrd Mat Min Mat Min Peak Influence 252 | 15 249 100 252 84 Initial 84 | . 9 35 . 84 Average 89 | 4 122 58 111 50 Maximum Alert Level 1 | . 1 . 1 . Low Security (%) 89 | 100 78 100 88 100 Level 1 10 | . 21 . 11 . Level 2 . | . . . . . Level 3 . | . . . . . Level 4 . | . . . . . Level 5 . | . . . . . High Security . | . . . . . Max Security . | . . . . . Squads Dispatched 3 | . 2 . 1 . Investigation 1 | . 1 . . . Extermination . | . . . . . Reinforcement 2 | . 1 . 1 . Assault . | . . . . . Garrison . | . . . . . Intercept . | . . . . . Searches Triggered . | . . . . . Construction Impeded . | . . . . . Haulers Reinforced . | . . . . . Active Scanning Responses . | . . . . . Cargo Convoy Interrupts . | . . . . . Stealth | -11 -10 -10 -9 -9 --------- Run | Yrd Mat Min Mat Min Distress Signals 1 | . . . 1 . Communications Jammed . | . . . . . Distress Signals . | . . . . . Times Spotted 48 | . 13 3 18 14 Peak Tracking Total 9 | . 3 3 5 9 Tactical Retreats 4 | . . 1 1 2 Traps | -11 -10 -10 -9 -9 ------- Run | Yrd Mat Min Mat Min Traps Triggered 3 | . 2 . 1 . Indirectly . | . . . . . Trap Hack Attempts . | . . . . . Triggered . | . . . . . Disarmed . | . . . . . Reprogrammed . | . . . . . Reused . | . . . . . Traps Extracted . | . . . . . Installed . | . . . . . Triggered . | . . . . . Machines | -11 -10 -10 -9 -9 ---------- Run | Yrd Mat Min Mat Min Machines Disabled . | . . . . . Max in Single Turn . | . . . . . Machines Repaired . | . . . . . Machines Dismantled . | . . . . . Machines Sabotaged . | . . . . . Overloaded Fab Kills . | . . . . . Hacking | -11 -10 -10 -9 -9 --------- Run | Yrd Mat Min Mat Min Machines Accessed . | . . . . . Terminals . | . . . . . Fabricators . | . . . . . Repair Stations . | . . . . . Recycling Units . | . . . . . Scanalyzers . | . . . . . Garrison Access . | . . . . . Total Hacks . | . . . . . Successful . | . . . . . Failed . | . . . . . Catastrophic . | . . . . . Database Lockouts . | . . . . . Manual . | . . . . . Terminals . | . . . . . Fabricators . | . . . . . Repair Stations . | . . . . . Recycling Units . | . . . . . Scanalyzers . | . . . . . Garrison Access . | . . . . . Terminal Hacks . | . . . . . Fabricator Hacks . | . . . . . Repair Station Hacks . | . . . . . Recycling Unit Hacks . | . . . . . Scanalyzer . | . . . . . Garrison Access Hacks . | . . . . . Unauthorized Hacks . | . . . . . Terminals . | . . . . . Fabricators . | . . . . . Repair Stations . | . . . . . Recycling Units . | . . . . . Scanalyzers . | . . . . . Garrison Access . | . . . . . Data Cores Recovered . | . . . . . Used . | . . . . . Hacking Detections . | . . . . . Full Trace Events . | . . . . . Feedback Events . | . . . . . Feedback Blocked . | . . . . . Robot Schematics Acquired . | . . . . . Robots Built . | . . . . . Authchips . | . . . . . Time . | . . . . . Total Robot Build Rating . | . . . . . Part Schematics Acquired . | . . . . . Parts Built . | . . . . . Authchips . | . . . . . Time . | . . . . . Total Part Build Rating . | . . . . . Parts Repaired . | . . . . . Time . | . . . . . Parts Recycled . | . . . . . Recycled Matter . | . . . . . Retrieved Matter . | . . . . . Retrieved Components . | . . . . . Parts Scanalyzed . | . . . . . Part Schematics Acquired . | . . . . . Parts Damaged . | . . . . . Bothacking | -11 -10 -10 -9 -9 ------------ Run | Yrd Mat Min Mat Min Used RIF Installer . | . . . . . Robots Hacked . | . . . . . Non-combat . | . . . . . Combat . | . . . . . Robot Hacks Applied . | . . . . . Relay Couplers Released . | . . . . . Fabnet Peak Effective % . | . . . . . Robots Rewired . | . . . . . Allies Hacked . | . . . . . Hacks Repelled . | . . . . . Allies | -11 -10 -10 -9 -9 -------- Run | Yrd Mat Min Mat Min Total Allies . | . . . . . Largest Group . | . . . . . Highest-Rated Group . | . . . . . Highest-Rated Ally . | . . . . . Total Orders . | . . . . . Ally Attacks . | . . . . . Total Damage . | . . . . . Kills . | . . . . . Allies Corrupted . | . . . . . Allies Melted 1 | . . . . 1 Intel | -11 -10 -10 -9 -9 ------- Run | Yrd Mat Min Mat Min Robot Analysis Total . | . . . . . Derelict Logs Recovered . | . . . . . Drone Launches . | . . . . . Drone Recoveries . | . . . . . Exploration | -11 -10 -10 -9 -9 ------------- Run | Yrd Mat Min Mat Min Turns Passed 2310 | 175 652 478 783 222 Spaces Moved 1114 | 88 299 288 350 89 Core 9 | 6 . . . 3 Treads 999 | 82 299 288 258 72 Legs 87 | . . . 81 6 Wheels . | . . . . . Hover . | . . . . . Flight 19 | . . . 11 8 Fastest Speed 50 | 50 160 160 120 160 Average Speed 167 | 152 160 160 170 224 Slowest Speed 750 | 160 160 160 470 750 Overloaded Moves . | . . . . . Propulsion Burnouts . | . . . . . Robots Hopped . | . . . . . Cave-ins Triggered . | . . . . . Exploration Rate (%) 39 | 5 57 58 41 34 Regions Visited 4 Branch Regions 2 Pre-discovered Areas 1 | . . 1 . . Known Exits Taken . | . . . . . Unknown Exits Taken 4 | 1 1 1 1 . Scrap Searched . | . . . . . Spaces Dug . | . . . . . Terrain Destroyed 7 | . . . 7 . Melee . | . . . . . Projectile . | . . . . . AOE 7 | . . . 7 . Terrain Rammed . | . . . . . Walls Destroyed . | . . . . . Machines Disabled . | . . . . . Actions | -11 -10 -10 -9 -9 --------- Run | Yrd Mat Min Mat Min Total 1394 | 112 419 300 455 108 Wait 97 | 1 73 9 14 . Move 1110 | 87 298 287 349 89 Hop . | . . . . . Pick Up 15 | 7 3 . 5 . Fast Attach 21 | 5 2 . 12 2 Attach 20 | 1 . . 9 10 Detach 9 | . . . 9 . Swap 12 | . 4 . 7 1 Drop 12 | . 7 . 5 . Fire 88 | 8 28 2 44 6 Melee . | . . . . . Ram . | . . . . . Kick . | . . . . . Crush 10 | 3 4 2 1 . Escape Stasis . | . . . . . Rewire . | . . . . . Trap . | . . . . . Miscellaneous . | . . . . . Route ------- -11/Scrapyard -10/Materials (discovered 3 exits: [*Mat] / [*Min x2]) -10/Mines -9/Materials (discovered 3 exits: [*Mat] / [*Min] / [*Sto]) -9/Mines History --------- Turn | Location | Event 14 | -11/Scrapyard | Discovered new exit (range 15) 176 | -11/Scrapyard | Entered Materials 312 | -10/Materials | Build established: Mutant 337 | -10/Materials | Discovered new exit (range 5) 735 | -10/Materials | Discovered new exit (range 12) 757 | -10/Materials | Discovered new exit (range 11) 828 | -10/Materials | Entered Mines 829 | -10/Mines | Learned location of Storage (-9) 863 | -10/Mines | Met a Derelict bent on vengeance 996 | -10/Mines | Discovered new exit (range 10) 1306 | -10/Mines | Entered Materials 1306 | -9/Materials | Evolved 2 slots: Propulsion x2 1306 | -9/Materials | Discovered new exit (range 7) 1416 | -9/Materials | System corruption reached 10% 1808 | -9/Materials | Build established: Scavenger-Mutant 1970 | -9/Materials | Discovered new exit (range 9) 2038 | -9/Materials | Lost 5 parts (1p3n1w) 2066 | -9/Materials | Discovered new exit (range 16) 2089 | -9/Materials | Entered Mines 2119 | -9/Mines | Assembled infested the area 2124 | -9/Mines | Assisted by a Guerilla fighting off Assembled 2185 | -9/Mines | Core integrity fell below 50% 2250 | -9/Mines | Lost 11 parts (1p6n1u3w) 2256 | -9/Mines | Core integrity fell below 20% 2311 | -9/Mines | Destroyed by D-53 Grenadier with Mini Grenade Launcher Last Messages --------------- 02252_ System corrupted: Heat flow error (+140). 02254_ R-06 Scavenger collects Heat Sink. 02259_ R-06 Scavenger collects Lgt. Treads. 02260_ Shotgun destroyed. 02263_ R-06 Scavenger collects Beam Rifle. 02265_ as-87423 destroyed. 02268_ System corrupted: Component data lost. 02272_ The unstable cave ceiling collapses. 02278_ Hvy. Assault Rifle destroyed. 02279_ The unstable cave ceiling collapses. 02283_ Lgt. Treads destroyed. 02288_ The unstable cave ceiling collapses. 02289_ Aluminum Leg destroyed. 02289_ Flight Unit destroyed. 02293_ The unstable cave ceiling collapses. 02294_ Lgt. Treads destroyed. 02298_ The unstable cave ceiling collapses. 02299_ Ion Engine destroyed. 02300_ System corrupted: Energy discharge (-38). 02300_ The unstable cave ceiling collapses. Map ----- +----------------------------------------------------+ | | | | | | | | | | | ?????????????????????????????????? | | ?????????????????????????????????? | | ?????????????????????????????????? | | ?????????????????????????????????? | | ?????????????????????????????????? | | ?????????????????????????????????? | | ?????????????????????????????????? | | ?????????????????????????????????? | | ?????????????????????????????????? | | ?????????????????????????????????? | | ?????????????????????????????????? | | ?????????????????????????????????? | | ?????????????????????????????????? | | ??????????????????????????#####??? | | ??????????????????????????#ggg#??? | | ?????????????????????????## #??? | | ???????????????????????### ##?? | | ?????????????????#?????# ##? | | ?????????????????# #### #? | | ?????????????????# #? | | ?????????????????# @ # | | ?????????????????#### ## # | | ???????????????????????# # | | ????????????????????#??# | | ???????????????##?### ## # | | ?????????????? # # # | | ????????????????????## # | | ????????????######??# ## d | | ???????????##"!]"##?## # | | ???????????#""![""???## # | | ???????????# ???# ## # # | | ????????????# #### # # ## | | ??? ???### # ### ! # ###? | | ????# # ## #####??? | | ?? # ###% ##??????? | | # %#???????? | | #???????? | | ######???????? | | ??### # ##????????????? | | ???## % ##?????????????? | | ?#### # #??????????????? | | ### # ### #??????????????? | | # # ### #??????????????? | | # # # ##?# #??????????????? | | ??????????????? | +----------------------------------------------------+ Best States ------------- Heat Dissipation 38 Energy Generation 12 Energy Capacity 265 Matter Stores 300 Matter Capacity 300 Sight Range 16 Terrain Scan Density 10 Armor Coverage 225 Evasion (%) 55 Recoil Reduction 2 Item Schematics ----------------- None Robot Schematics ------------------ None Fabricated ------------ Nothing Alien Tech Used ----------------- None Achievements -------------- None Challenges ------------ None Game ------ Seed ChargeHeartSpecial Manual? 0 Play Time 00:18:21 Cumulative 11.8 hours Start 2024.11.06 @ 21:59:23 End 2024.11.06 @ 22:15:39 Sessions 1 Manual Loads 0 Difficulty Rogue Special Mode None Game No. 42 Rogue 42 Adventurer 0 Explorer 0 Win Type - Total 0 Types 0/0/0/0/0/0/0/0/0 Lore% 5 Gallery% 16 Achievement% 14 Wizard Run 0 Options --------- Layout 1 ASCII 0 Keyboard 0 Movement Numpad Keybinds 0 Fullscreen 0 Font 20/SmallcapsGlow Map View 50x35 Zoom Use 0% Tactical HUD 1 Map Filters NONE Filters NONE Steam 1 RUN: 6d048303-62e0-4579-a9ce-c96190271388